[Event "*** Biggest EVER Titled Tuesday"]
[Site "Chess.com"]
[Date "2018.04.17"]
[Round "6"]
[White "Abund"]
[Black "chesssharkattack"]
[Result "1-0"]
[WhiteElo "2470"]
[BlackElo "2380"]
[TimeControl "180+2"]
[EndTime "14:27:03 PDT"]
[Termination "Abund won by resignation"]

1. Nf3 {[%clk 0:03:01.9]} 1... Nc6 {[%clk 0:02:59.2]} 2. d4 {[%clk 0:03:02.6]}
2... d5 {[%clk 0:02:58.9]} 3. Bf4 {[%clk 0:03:03]} 3... Nf6 {[%clk 0:02:56.9]}
4. e3 {[%clk 0:03:04.1]} 4... Bf5 {[%clk 0:02:55.2]} 5. c4 {[%clk 0:03:01]} 5...
e6 {[%clk 0:02:55.4]} 6. Nc3 {[%clk 0:03:00.8]} 6... Be7 {[%clk 0:02:51.9]} 7.
Be2 {[%clk 0:03:00.3]} 7... O-O {[%clk 0:02:53.1]} 8. O-O {[%clk 0:03:01.4]}
8... h6 {[%clk 0:02:48.8]} 9. h3 {[%clk 0:03:02.1]} 9... Nb4 {[%clk 0:02:49.6]}
10. a3 {[%clk 0:03:00]} 10... Nc6 {[%clk 0:02:40.4]} 11. b4 {[%clk 0:02:58]}
11... a5 {[%clk 0:02:36.7]} 12. b5 {[%clk 0:02:44.3]} 12... Na7 {[%clk
0:02:37.3]} 13. Qb3 {[%clk 0:02:36.8]} 13... Nc8 {[%clk 0:02:36]} 14. Na4 {[%clk
0:02:33.8]} 14... Nd6 {[%clk 0:02:32.6]} 15. Rfc1 {[%clk 0:02:17.8]} 15... Nxc4
{[%clk 0:02:22.7]} 16. Bxc4 {[%clk 0:02:18.5]} 16... dxc4 {[%clk 0:02:24.6]} 17.
Rxc4 {[%clk 0:02:09.8]} 17... Rc8 {[%clk 0:02:14.6]} 18. Rac1 {[%clk 0:02:03.6]}
18... Nd5 {[%clk 0:02:03.5]} 19. Be5 {[%clk 0:02:01.2]} 19... Bf6 {[%clk
0:01:33]} 20. Nc5 {[%clk 0:01:36.1]} 20... b6 {[%clk 0:00:48.2]} 21. Na6 {[%clk
0:01:34.6]} 21... Bxe5 {[%clk 0:00:49.1]} 22. Nxe5 {[%clk 0:01:35.6]} 22... Qg5
{[%clk 0:00:50]} 23. Kh2 {[%clk 0:01:11.9]} 23... f6 {[%clk 0:00:26.1]} 24. Nf3
{[%clk 0:00:51.1]} 24... Qh5 {[%clk 0:00:26.5]} 25. Nxc7 {[%clk 0:00:23]} 25...
Bxh3 {[%clk 0:00:13.4]} 26. Nxd5 {[%clk 0:00:23.2]} 26... exd5 {[%clk
0:00:12.1]} 27. Rxc8 {[%clk 0:00:18.8]} 27... Rxc8 {[%clk 0:00:06.1]} 28. Rxc8+
{[%clk 0:00:18.8]} 28... Bxc8+ {[%clk 0:00:08]} 29. Kg1 {[%clk 0:00:20]} 29...
Bg4 {[%clk 0:00:09.4]} 30. Ne1 {[%clk 0:00:19.6]} 30... Kh7 {[%clk 0:00:07.9]}
31. Qc3 {[%clk 0:00:14.5]} 31... Be2 {[%clk 0:00:08.2]} 32. Qc6 {[%clk
0:00:14.7]} 32... Bc4 {[%clk 0:00:08.9]} 33. Nf3 {[%clk 0:00:15.3]} 33... Qf5
{[%clk 0:00:07.8]} 34. Qxb6 {[%clk 0:00:12.1]} 34... Qb1+ {[%clk 0:00:08.8]} 35.
Kh2 {[%clk 0:00:12.7]} 35... Qxb5 {[%clk 0:00:05.7]} 36. Qe6 {[%clk 0:00:12.3]}
36... Qb1 {[%clk 0:00:03.5]} 37. Nh4 {[%clk 0:00:10.2]} 37... Qc2 {[%clk
0:00:04.5]} 38. Kg3 {[%clk 0:00:09.3]} 38... Qe4 {[%clk 0:00:04.7]} 39. Qxe4+
{[%clk 0:00:04.9]} 39... dxe4 {[%clk 0:00:06.6]} 40. Kh2 {[%clk 0:00:05.3]}
40... g6 {[%clk 0:00:07.3]} 41. g3 {[%clk 0:00:06.1]} 41... f5 {[%clk
0:00:08.4]} 42. Kg1 {[%clk 0:00:06.4]} 42... Kg7 {[%clk 0:00:08.7]} 43. f4
{[%clk 0:00:07.3]} 43... Kf6 {[%clk 0:00:08.3]} 44. Kf2 {[%clk 0:00:08.7]} 44...
Bd3 {[%clk 0:00:06.6]} 45. Ke1 {[%clk 0:00:09.7]} 45... Bc4 {[%clk 0:00:07.3]}
46. Kd2 {[%clk 0:00:11]} 46... Be6 {[%clk 0:00:08.6]} 47. Kc3 {[%clk 0:00:11.7]}
47... Ke7 {[%clk 0:00:09.9]} 48. Ng2 {[%clk 0:00:12]} 48... Kd6 {[%clk
0:00:10.3]} 49. Nh4 {[%clk 0:00:13.2]} 49... g5 {[%clk 0:00:11.4]} 50. fxg5
{[%clk 0:00:12.8]} 50... hxg5 {[%clk 0:00:13.3]} 51. Ng6 {[%clk 0:00:13.9]}
51... Kc6 {[%clk 0:00:14.2]} 52. Ne5+ {[%clk 0:00:14.2]} 52... Kb5 {[%clk
0:00:14.6]} 53. Kb2 {[%clk 0:00:15.3]} 53... Bd5 {[%clk 0:00:12.8]} 54. Kc3
{[%clk 0:00:14.4]} 54... Be6 {[%clk 0:00:13.8]} 55. Kb2 {[%clk 0:00:15.5]} 55...
Ka4 {[%clk 0:00:11]} 56. Nc6 {[%clk 0:00:14]} 56... Kb5 {[%clk 0:00:04.9]} 57.
Ne5 {[%clk 0:00:10.8]} 57... Bd5 {[%clk 0:00:05]} 58. Kc3 {[%clk 0:00:11.1]}
58... Be6 {[%clk 0:00:05.3]} 59. Ng6 {[%clk 0:00:11]} 59... Bd5 {[%clk
0:00:04.1]} 60. Nf8 {[%clk 0:00:07.7]} 60... Ka4 {[%clk 0:00:03.3]} 61. Kb2
{[%clk 0:00:08.1]} 61... Kb5 {[%clk 0:00:04.8]} 62. Kc3 {[%clk 0:00:06]} 62...
Ka4 {[%clk 0:00:05.9]} 63. Kb2 {[%clk 0:00:07.2]} 63... Kb5 {[%clk 0:00:07]} 64.
Nh7 {[%clk 0:00:08.8]} 64... Kc4 {[%clk 0:00:07.7]} 65. Kc2 {[%clk 0:00:09.7]}
65... Bc6 {[%clk 0:00:07.5]} 66. Nxg5 {[%clk 0:00:10.7]} 66... Ba4+ {[%clk
0:00:08.6]} 67. Kd2 {[%clk 0:00:11.4]} 67... Kb3 {[%clk 0:00:09.8]} 68. d5
{[%clk 0:00:12.7]} 68... Kxa3 {[%clk 0:00:10.4]} 69. Kc3 {[%clk 0:00:14.1]}
69... Bd7 {[%clk 0:00:10.7]} 70. Ne6 {[%clk 0:00:14.5]} 70... Ka2 {[%clk
0:00:11.9]} 71. Nc5 {[%clk 0:00:15.6]} 71... Bc8 {[%clk 0:00:13.2]} 72. d6
{[%clk 0:00:16.7]} 72... Kb1 {[%clk 0:00:10.4]} 73. d7 {[%clk 0:00:13.3]} 73...
Bxd7 {[%clk 0:00:11.7]} 74. Nxd7 {[%clk 0:00:15.2]} 74... a4 {[%clk 0:00:13.2]}
75. Kb4 {[%clk 0:00:10.6]} 75... Kc2 {[%clk 0:00:15.1]} 76. Nf6 {[%clk
0:00:08.9]} 76... Kd3 {[%clk 0:00:13.3]} 77. Nd5 {[%clk 0:00:10]} 77... a3
{[%clk 0:00:15.2]} 78. Kxa3 {[%clk 0:00:11]} 78... Kc4 {[%clk 0:00:17.1]} 79.
Nf4 {[%clk 0:00:11.3]} 79... Kc3 {[%clk 0:00:17.4]} 80. Ka4 {[%clk 0:00:11.8]}
80... Kc4 {[%clk 0:00:17.4]} 81. Ka5 {[%clk 0:00:12.1]} 81... Kc5 {[%clk
0:00:18.8]} 82. Ka6 {[%clk 0:00:13.2]} 82... Kc6 {[%clk 0:00:20.1]} 83. Ka7
{[%clk 0:00:14.3]} 83... Kc7 {[%clk 0:00:19.6]} 84. Ng2 {[%clk 0:00:15.3]} 84...
Kd6 {[%clk 0:00:19.9]} 85. Kb6 {[%clk 0:00:16.6]} 85... Ke6 {[%clk 0:00:20.2]}
86. Kc5 {[%clk 0:00:18.5]} 86... Kf6 {[%clk 0:00:21.7]} 87. Nf4 {[%clk
0:00:12.8]} 87... Kg5 {[%clk 0:00:22.2]} 88. Kd4 {[%clk 0:00:10.9]} 88... Kg4
{[%clk 0:00:22.3]} 89. Ke5 {[%clk 0:00:10.1]} 89... Kg5 {[%clk 0:00:19.8]} 90.
Nd5 {[%clk 0:00:10.8]} 90... Kg4 {[%clk 0:00:20.6]} 91. Ne7 {[%clk 0:00:11.6]}
91... Kxg3 {[%clk 0:00:20.4]} 92. Nxf5+ {[%clk 0:00:12.1]} 92... Kf3 {[%clk
0:00:22.3]} 93. Kd4 {[%clk 0:00:12.1]} 93... Kg4 {[%clk 0:00:22.8]} 94. Kxe4
{[%clk 0:00:14]} 1-0

[Event "*** Biggest EVER Titled Tuesday"]
[Site "Chess.com"]
[Date "2018.04.17"]
[Round "6"]
[White "xavielhumilde_1999"]
[Black "Annawel"]
[Result "0-1"]
[WhiteElo "2234"]
[BlackElo "2860"]
[TimeControl "180+2"]
[EndTime "14:28:25 PDT"]
[Termination "Annawel won by resignation"]

1. e4 {[%clk 0:02:58.1]} 1... c6 {[%clk 0:03:00.6]} 2. d4 {[%clk 0:02:57.3]}
2... d5 {[%clk 0:03:02]} 3. e5 {[%clk 0:02:56.7]} 3... Bf5 {[%clk 0:03:03.3]} 4.
Nf3 {[%clk 0:02:57.1]} 4... e6 {[%clk 0:03:04.2]} 5. Be2 {[%clk 0:02:58.2]} 5...
h6 {[%clk 0:03:02.7]} 6. O-O {[%clk 0:02:58.2]} 6... Ne7 {[%clk 0:03:03.9]} 7.
Nbd2 {[%clk 0:02:58.8]} 7... Nd7 {[%clk 0:03:03.9]} 8. Nb3 {[%clk 0:02:59.4]}
8... g5 {[%clk 0:02:58.8]} 9. Ne1 {[%clk 0:02:59]} 9... Bg7 {[%clk 0:02:59.4]}
10. Nd3 {[%clk 0:02:59]} 10... O-O {[%clk 0:02:56.7]} 11. f4 {[%clk 0:02:59.5]}
11... f6 {[%clk 0:02:36.2]} 12. g3 {[%clk 0:02:07]} 12... Ng6 {[%clk 0:02:32.5]}
13. Be3 {[%clk 0:02:02.9]} 13... Qe7 {[%clk 0:02:32]} 14. a4 {[%clk 0:02:02.1]}
14... fxe5 {[%clk 0:02:24.6]} 15. fxe5 {[%clk 0:01:58.7]} 15... a5 {[%clk
0:02:14.5]} 16. Qd2 {[%clk 0:01:57.7]} 16... b6 {[%clk 0:02:15.2]} 17. Rae1
{[%clk 0:01:46.8]} 17... Rf7 {[%clk 0:02:08.8]} 18. Bh5 {[%clk 0:01:45]} 18...
Kh7 {[%clk 0:02:10.1]} 19. Qe2 {[%clk 0:01:27]} 19... Raf8 {[%clk 0:02:08.4]}
20. Qd2 {[%clk 0:01:25.5]} 20... Bh3 {[%clk 0:02:06.8]} 21. Rxf7 {[%clk
0:01:25.5]} 21... Qxf7 {[%clk 0:02:08.7]} 22. Nf2 {[%clk 0:01:24.6]} 22... Bf5
{[%clk 0:01:57]} 23. g4 {[%clk 0:01:24.6]} 23... Be4 {[%clk 0:01:51.2]} 24. Nxe4
{[%clk 0:01:23.9]} 24... dxe4 {[%clk 0:01:53.1]} 25. Qg2 {[%clk 0:01:13.6]}
25... Qf3 {[%clk 0:01:51.1]} 26. Qxf3 {[%clk 0:01:14.2]} 26... exf3 {[%clk
0:01:48.2]} 27. Bxg6+ {[%clk 0:01:14.5]} 27... Kxg6 {[%clk 0:01:49.3]} 28. Nd2
{[%clk 0:01:15.5]} 28... h5 {[%clk 0:01:45.8]} 29. h3 {[%clk 0:01:15.2]} 29...
hxg4 {[%clk 0:01:42.4]} 30. hxg4 {[%clk 0:01:14.7]} 30... c5 {[%clk 0:01:43.5]}
31. c3 {[%clk 0:01:14.3]} 31... cxd4 {[%clk 0:01:06]} 32. cxd4 {[%clk
0:01:13.8]} 32... Rc8 {[%clk 0:00:55.9]} 33. Nxf3 {[%clk 0:01:12.8]} 33... Rc2
{[%clk 0:00:57.3]} 34. Nxg5 {[%clk 0:01:10.1]} 34... Nf8 {[%clk 0:00:58.8]} 35.
Ne4 {[%clk 0:00:35.2]} 35... Rxb2 {[%clk 0:00:57.5]} 36. Rc1 {[%clk 0:00:32.9]}
36... Re2 {[%clk 0:00:56.2]} 37. Rc3 {[%clk 0:00:32.1]} 37... Ra2 {[%clk
0:00:44]} 38. Rb3 {[%clk 0:00:31.8]} 38... Nd7 {[%clk 0:00:39.2]} 39. Ng5 {[%clk
0:00:29.9]} 39... Nf8 {[%clk 0:00:27.6]} 40. Ne4 {[%clk 0:00:30.5]} 40... Nd7
{[%clk 0:00:16.5]} 41. Ng5 {[%clk 0:00:29.7]} 41... Nf8 {[%clk 0:00:16.7]} 42.
Ne4 {[%clk 0:00:23.5]} 42... Rxa4 {[%clk 0:00:18]} 43. Rxb6 {[%clk 0:00:23.3]}
43... Ra2 {[%clk 0:00:19.2]} 44. d5 {[%clk 0:00:21.8]} 44... Bxe5 {[%clk
0:00:19.9]} 45. dxe6 {[%clk 0:00:21.8]} 45... Bh2+ {[%clk 0:00:18]} 46. Kh1
{[%clk 0:00:18.6]} 46... Re2 {[%clk 0:00:04.5]} 47. e7+ {[%clk 0:00:15.6]} 47...
Kf7 {[%clk 0:00:06]} 48. exf8=Q+ {[%clk 0:00:12.4]} 48... Kxf8 {[%clk
0:00:07.9]} 49. Bc5+ {[%clk 0:00:08.9]} 49... Kg7 {[%clk 0:00:07.7]} 50. Nf2
{[%clk 0:00:08.4]} 50... Be5 {[%clk 0:00:06.8]} 51. Kg2 {[%clk 0:00:08.4]} 51...
Rc2 {[%clk 0:00:07.2]} 52. Be3 {[%clk 0:00:08.7]} 52... a4 {[%clk 0:00:08]} 53.
Ra6 {[%clk 0:00:09.6]} 53... Rc3 {[%clk 0:00:06.8]} 54. Nd1 {[%clk 0:00:06.4]}
54... Rd3 {[%clk 0:00:07.1]} 55. Rxa4 {[%clk 0:00:04.2]} 55... Rxd1 {[%clk
0:00:07.8]} 56. Re4 {[%clk 0:00:05.3]} 56... Bd6 {[%clk 0:00:09]} 57. Bd4+
{[%clk 0:00:06.1]} 57... Kf7 {[%clk 0:00:09.8]} 58. Be3 {[%clk 0:00:07.4]} 58...
Be7 {[%clk 0:00:09.7]} 59. Rf4+ {[%clk 0:00:07.6]} 59... Kg6 {[%clk 0:00:10.7]}
60. Rf1 {[%clk 0:00:08.5]} 60... Rd3 {[%clk 0:00:11.5]} 61. Bf2 {[%clk
0:00:08.7]} 61... Bd6 {[%clk 0:00:12.3]} 62. Re1 {[%clk 0:00:09]} 62... Kg5
{[%clk 0:00:13.6]} 63. Re4 {[%clk 0:00:08.2]} 63... Bf4 {[%clk 0:00:14.5]} 64.
Re8 {[%clk 0:00:05.5]} 64... Kxg4 {[%clk 0:00:15.7]} 65. Rg8+ {[%clk 0:00:06.5]}
65... Kf5 {[%clk 0:00:17.3]} 66. Rf8+ {[%clk 0:00:07.4]} 66... Kg4 {[%clk
0:00:18.9]} 67. Rg8+ {[%clk 0:00:08.8]} 67... Bg5 {[%clk 0:00:20.6]} 68. Kf1
{[%clk 0:00:09.5]} 68... Rb3 {[%clk 0:00:20.9]} 69. Ke2 {[%clk 0:00:10.5]} 69...
Kf4 {[%clk 0:00:21.8]} 70. Rf8+ {[%clk 0:00:08.8]} 70... Ke5 {[%clk 0:00:22.6]}
71. Re8+ {[%clk 0:00:09.6]} 71... Kd5 {[%clk 0:00:23.8]} 72. Rg8 {[%clk
0:00:09.4]} 72... Bf6 {[%clk 0:00:24.8]} 73. Be3 {[%clk 0:00:09.7]} 73... Be5
{[%clk 0:00:24.7]} 74. Rd8+ {[%clk 0:00:09.2]} 74... Ke4 {[%clk 0:00:25.9]} 75.
Bd2 {[%clk 0:00:08.9]} 75... Rh3 {[%clk 0:00:26.8]} 76. Ra8 {[%clk 0:00:07.8]}
76... Rh2+ {[%clk 0:00:25.8]} 77. Kd1 {[%clk 0:00:08.8]} 77... Kd3 {[%clk
0:00:25.2]} 78. Ra3+ {[%clk 0:00:09.4]} 78... Kc4 {[%clk 0:00:26.9]} 79. Ra4+
{[%clk 0:00:10.2]} 79... Kd5 {[%clk 0:00:28.1]} 80. Ra5+ {[%clk 0:00:11.1]}
80... Ke4 {[%clk 0:00:29.7]} 81. Ra4+ {[%clk 0:00:11.9]} 81... Bd4 {[%clk
0:00:31.3]} 82. Ra8 {[%clk 0:00:10.5]} 82... Rg2 {[%clk 0:00:31.3]} 83. Ra4
{[%clk 0:00:07.1]} 83... Rg3 {[%clk 0:00:31.2]} 84. Ra8 {[%clk 0:00:07.1]} 84...
Rb3 {[%clk 0:00:32.3]} 85. Ra4 {[%clk 0:00:07.8]} 85... Kd3 {[%clk 0:00:31.8]}
86. Ra8 {[%clk 0:00:03]} 86... Bf6 {[%clk 0:00:22.2]} 87. Bc1 {[%clk 0:00:04]}
87... Bc3 {[%clk 0:00:17.5]} 88. Ra6 {[%clk 0:00:04.8]} 88... Bb4 {[%clk
0:00:15.8]} 89. Ra8 {[%clk 0:00:05.5]} 89... Bc5 {[%clk 0:00:16]} 90. Rd8+
{[%clk 0:00:06.4]} 90... Bd4 {[%clk 0:00:17.6]} 91. Ra8 {[%clk 0:00:07.9]} 91...
Rb7 {[%clk 0:00:17.4]} 92. Ra3+ {[%clk 0:00:06.4]} 92... Bc3 {[%clk 0:00:18.5]}
93. Ra8 {[%clk 0:00:07.3]} 93... Rg7 {[%clk 0:00:14.3]} 94. Rd8+ {[%clk
0:00:07.7]} 94... Kc4 {[%clk 0:00:13.7]} 95. Rc8+ {[%clk 0:00:08.6]} 95... Kb3
{[%clk 0:00:14.3]} 96. Rb8+ {[%clk 0:00:09.6]} 96... Bb4 {[%clk 0:00:14.9]} 97.
Rh8 {[%clk 0:00:07.9]} 97... Rg1+ {[%clk 0:00:15.2]} 98. Ke2 {[%clk 0:00:05.9]}
98... Re1+ {[%clk 0:00:15.9]} 99. Kf2 {[%clk 0:00:06.2]} 99... Rxc1 {[%clk
0:00:17.2]} 100. Rh3+ {[%clk 0:00:07.1]} 100... Kc4 {[%clk 0:00:18]} 101. Rh4+
{[%clk 0:00:08.1]} 101... Kc3 {[%clk 0:00:19.1]} 102. Rh3+ {[%clk 0:00:09.2]}
102... Kd2 {[%clk 0:00:19.9]} 103. Rh8 {[%clk 0:00:10]} 103... Bc5+ {[%clk
0:00:19.8]} 104. Kf3 {[%clk 0:00:10.8]} 104... Bd4 {[%clk 0:00:21.3]} 105. Rd8
{[%clk 0:00:11.5]} 105... Kd3 {[%clk 0:00:22.7]} 106. Rd7 {[%clk 0:00:12.3]}
106... Rf1+ {[%clk 0:00:24]} 107. Kg2 {[%clk 0:00:13.3]} 107... Rf2+ {[%clk
0:00:24.7]} 108. Kh3 {[%clk 0:00:14.1]} 108... Ke4 {[%clk 0:00:24.3]} 109. Re7+
{[%clk 0:00:14.8]} 109... Be5 {[%clk 0:00:23.3]} 110. Kg4 {[%clk 0:00:14.8]}
110... Rg2+ {[%clk 0:00:24.2]} 111. Kh5 {[%clk 0:00:14.5]} 111... Kf5 {[%clk
0:00:22.8]} 0-1

[Event "*** Biggest EVER Titled Tuesday"]
[Site "Chess.com"]
[Date "2018.04.17"]
[Round "7"]
[White "nikitakhoroshev"]
[Black "mukhin1"]
[Result "1/2-1/2"]
[WhiteElo "2528"]
[BlackElo "2902"]
[TimeControl "180+2"]
[EndTime "14:31:46 PDT"]
[Termination "Game drawn by agreement"]

1. d4 {[%clk 0:03:01.9]} 1... e6 {[%clk 0:02:58.9]} 2. Nc3 {[%clk 0:03:00.4]}
2... Bb4 {[%clk 0:02:56.5]} 3. Bd2 {[%clk 0:02:59.8]} 3... d5 {[%clk 0:02:55.1]}
4. e3 {[%clk 0:02:56.2]} 4... Nf6 {[%clk 0:02:53.1]} 5. Nf3 {[%clk 0:02:55.3]}
5... O-O {[%clk 0:02:47.9]} 6. Bd3 {[%clk 0:02:53.4]} 6... c5 {[%clk 0:02:47.4]}
7. O-O {[%clk 0:02:49.8]} 7... Nc6 {[%clk 0:02:48.6]} 8. a3 {[%clk 0:02:46.6]}
8... Bxc3 {[%clk 0:02:49.4]} 9. Bxc3 {[%clk 0:02:46.8]} 9... c4 {[%clk
0:02:49.1]} 10. Be2 {[%clk 0:02:48]} 10... Ne4 {[%clk 0:02:51]} 11. Qe1 {[%clk
0:02:44]} 11... Bd7 {[%clk 0:02:47.9]} 12. a4 {[%clk 0:02:43.1]} 12... Qc7
{[%clk 0:02:46]} 13. b3 {[%clk 0:02:41.7]} 13... cxb3 {[%clk 0:02:43.1]} 14.
cxb3 {[%clk 0:02:43.6]} 14... Qb6 {[%clk 0:02:40.4]} 15. Rb1 {[%clk 0:02:40.7]}
15... Rac8 {[%clk 0:02:38.4]} 16. Bd2 {[%clk 0:02:39.5]} 16... a6 {[%clk
0:02:32.5]} 1/2-1/2

[Event "*** Biggest EVER Titled Tuesday"]
[Site "Chess.com"]
[Date "2018.04.17"]
[Round "7"]
[White "KenanGarayev"]
[Black "wonderfultime"]
[Result "0-1"]
[WhiteElo "2562"]
[BlackElo "2796"]
[TimeControl "180+2"]
[EndTime "14:31:59 PDT"]
[Termination "wonderfultime won by resignation"]

1. d4 {[%clk 0:03:01.9]} 1... d5 {[%clk 0:03:00]} 2. c4 {[%clk 0:03:01.3]} 2...
c6 {[%clk 0:03:01.2]} 3. Nc3 {[%clk 0:03:01.9]} 3... Nf6 {[%clk 0:03:02.4]} 4.
e3 {[%clk 0:03:02.7]} 4... a6 {[%clk 0:03:03.5]} 5. Qc2 {[%clk 0:02:56.3]} 5...
g6 {[%clk 0:02:58.7]} 6. Nf3 {[%clk 0:02:57]} 6... Bf5 {[%clk 0:02:58.6]} 7. Bd3
{[%clk 0:02:57.3]} 7... Bxd3 {[%clk 0:02:58.7]} 8. Qxd3 {[%clk 0:02:59.2]} 8...
Bg7 {[%clk 0:03:00.4]} 9. O-O {[%clk 0:02:59.7]} 9... O-O {[%clk 0:03:01.7]} 10.
e4 {[%clk 0:02:58.7]} 10... dxe4 {[%clk 0:03:02.1]} 11. Nxe4 {[%clk 0:03:00.6]}
11... Nbd7 {[%clk 0:03:03.1]} 12. Bg5 {[%clk 0:02:54.7]} 12... Re8 {[%clk
0:02:56.3]} 13. Rad1 {[%clk 0:02:53.3]} 13... Qc7 {[%clk 0:02:55.5]} 14. Nxf6+
{[%clk 0:02:47.6]} 14... Nxf6 {[%clk 0:02:54.5]} 15. Qc2 {[%clk 0:02:45.7]}
15... Rad8 {[%clk 0:02:48.8]} 16. Rfe1 {[%clk 0:02:45.9]} 16... Qa5 {[%clk
0:02:44.8]} 17. b3 {[%clk 0:02:43.3]} 17... Rd7 {[%clk 0:02:41.1]} 18. Ne5
{[%clk 0:02:39.2]} 18... Rxd4 {[%clk 0:02:40.8]} 19. Nd3 {[%clk 0:02:27.1]}
19... Qxg5 {[%clk 0:02:40.3]} 0-1

[Event "*** Biggest EVER Titled Tuesday"]
[Site "Chess.com"]
[Date "2018.04.17"]
[Round "7"]
[White "Saitama_Hero"]
[Black "peteseeger"]
[Result "1-0"]
[WhiteElo "2158"]
[BlackElo "2091"]
[TimeControl "180+2"]
[EndTime "14:33:19 PDT"]
[Termination "Saitama_Hero won by resignation"]

1. d4 {[%clk 0:03:01.9]} 1... g6 {[%clk 0:02:59.3]} 2. e4 {[%clk 0:03:01.4]}
2... Bg7 {[%clk 0:03:00.2]} 3. Nc3 {[%clk 0:03:02.8]} 3... c6 {[%clk 0:03:01.1]}
4. h4 {[%clk 0:03:01]} 4... d5 {[%clk 0:03:00.6]} 5. h5 {[%clk 0:02:59.7]} 5...
dxe4 {[%clk 0:02:58.2]} 6. Nxe4 {[%clk 0:02:54.7]} 6... Qxd4 {[%clk 0:02:57.7]}
7. Qe2 {[%clk 0:02:55.1]} 7... Nd7 {[%clk 0:02:22.1]} 8. Nf3 {[%clk 0:02:53.7]}
8... Qb4+ {[%clk 0:01:58.3]} 9. c3 {[%clk 0:02:52.2]} 9... Qb6 {[%clk
0:01:58.6]} 10. Bg5 {[%clk 0:02:06.7]} 10... Ngf6 {[%clk 0:01:45.5]} 11. h6
{[%clk 0:02:05.3]} 1-0

[Event "*** Biggest EVER Titled Tuesday"]
[Site "Chess.com"]
[Date "2018.04.17"]
[Round "7"]
[White "chegueps"]
[Black "Vusatiuk_Vladimir"]
[Result "1-0"]
[WhiteElo "2280"]
[BlackElo "2192"]
[TimeControl "180+2"]
[EndTime "14:34:11 PDT"]
[Termination "chegueps won on time"]

1. e4 {[%clk 0:03:01.9]} 1... c5 {[%clk 0:03:00.4]} 2. Nf3 {[%clk 0:03:03]} 2...
d6 {[%clk 0:03:00.9]} 3. Bb5+ {[%clk 0:03:04.1]} 3... Nd7 {[%clk 0:03:01.2]} 4.
O-O {[%clk 0:03:04.2]} 4... Nf6 {[%clk 0:02:59.9]} 5. Re1 {[%clk 0:03:05.1]}
5... a6 {[%clk 0:03:00.6]} 6. Bxd7+ {[%clk 0:03:05.3]} 6... Bxd7 {[%clk
0:03:01.3]} 7. c3 {[%clk 0:03:06.6]} 7... Bc6 {[%clk 0:02:56.5]} 8. e5 {[%clk
0:03:07.4]} 8... dxe5 {[%clk 0:02:56.5]} 9. Nxe5 {[%clk 0:03:09.3]} 9... Qc7
{[%clk 0:02:57.6]} 10. d4 {[%clk 0:03:08.7]} 10... e6 {[%clk 0:02:58.6]} 11. Bf4
{[%clk 0:03:07.6]} 11... Qb6 {[%clk 0:02:56.7]} 12. Nd2 {[%clk 0:02:45.8]} 12...
cxd4 {[%clk 0:02:54]} 13. Ndc4 {[%clk 0:02:43.5]} 13... Qd8 {[%clk 0:02:52.4]}
14. Nxc6 {[%clk 0:02:35.5]} 14... bxc6 {[%clk 0:02:53.3]} 15. Qa4 {[%clk
0:02:36]} 15... Qd7 {[%clk 0:02:47.7]} 16. Nb6 {[%clk 0:02:36.8]} 1-0

[Event "*** Biggest EVER Titled Tuesday"]
[Site "Chess.com"]
[Date "2018.04.17"]
[Round "7"]
[White "rekosheten"]
[Black "ChessMavenYeti"]
[Result "0-1"]
[WhiteElo "2261"]
[BlackElo "2109"]
[TimeControl "180+2"]
[EndTime "14:34:14 PDT"]
[Termination "ChessMavenYeti won by resignation"]

1. e4 {[%clk 0:03:01.9]} 1... e5 {[%clk 0:02:55.7]} 2. Nf3 {[%clk 0:03:00.2]}
2... Nf6 {[%clk 0:02:57]} 3. Nxe5 {[%clk 0:03:00.7]} 3... d6 {[%clk 0:02:58.3]}
4. Nc4 {[%clk 0:03:02.2]} 4... Nxe4 {[%clk 0:02:57.9]} 5. Nc3 {[%clk 0:03:03.7]}
5... Nxc3 {[%clk 0:02:49.3]} 6. bxc3 {[%clk 0:03:05.6]} 6... d5 {[%clk 0:02:48]}
7. Ne3 {[%clk 0:03:06.5]} 7... Be7 {[%clk 0:02:47.3]} 8. d4 {[%clk 0:03:07.4]}
8... O-O {[%clk 0:02:47.7]} 9. Bd3 {[%clk 0:03:08.5]} 9... c6 {[%clk 0:02:42.6]}
10. Qh5 {[%clk 0:02:59.3]} 10... g6 {[%clk 0:02:40.9]} 11. Qh6 {[%clk 0:02:40]}
11... Bg5 {[%clk 0:02:38.2]} 12. Ng4 {[%clk 0:02:39.8]} 12... Re8+ {[%clk
0:02:28.1]} 13. Kf1 {[%clk 0:02:39.3]} 13... Bxh6 {[%clk 0:02:27.8]} 14. Nxh6+
{[%clk 0:02:39.7]} 14... Kg7 {[%clk 0:02:28.6]} 15. h4 {[%clk 0:02:41.6]} 15...
Nd7 {[%clk 0:02:09.1]} 16. Bg5 {[%clk 0:02:38.6]} 16... f6 {[%clk 0:01:57.2]}
17. Bf4 {[%clk 0:02:39.3]} 17... Qa5 {[%clk 0:01:57]} 18. Bd2 {[%clk 0:02:34.5]}
18... Nf8 {[%clk 0:01:53.1]} 19. h5 {[%clk 0:02:34.9]} 19... Bd7 {[%clk
0:01:49.4]} 20. hxg6 {[%clk 0:02:32.4]} 20... hxg6 {[%clk 0:01:49.2]} 21. g3
{[%clk 0:02:23.7]} 21... Re7 {[%clk 0:01:43.3]} 22. Kg2 {[%clk 0:02:22.4]} 22...
Rae8 {[%clk 0:01:42.7]} 23. Rh4 {[%clk 0:02:22.1]} 23... f5 {[%clk 0:01:28.4]}
24. Rah1 {[%clk 0:02:15.7]} 24... Qxa2 {[%clk 0:01:20.9]} 25. Bg5 {[%clk
0:02:11.3]} 25... Re1 {[%clk 0:01:20.2]} 26. Nxf5+ {[%clk 0:02:01.1]} 26... Bxf5
{[%clk 0:01:18.2]} 27. Rh7+ {[%clk 0:02:01.4]} 27... Nxh7 {[%clk 0:01:18.8]} 0-1

[Event "*** Biggest EVER Titled Tuesday"]
[Site "Chess.com"]
[Date "2018.04.17"]
[Round "7"]
[White "WinnerOleg"]
[Black "ENEASZ"]
[Result "0-1"]
[WhiteElo "2309"]
[BlackElo "2477"]
[TimeControl "180+2"]
[EndTime "14:34:41 PDT"]
[Termination "ENEASZ won by resignation"]

1. b3 {[%clk 0:03:01.7]} 1... Nf6 {[%clk 0:02:57.3]} 2. Bb2 {[%clk 0:03:02.2]}
2... g6 {[%clk 0:02:59.2]} 3. e3 {[%clk 0:03:02.7]} 3... Bg7 {[%clk 0:03:00]} 4.
Nf3 {[%clk 0:03:04.6]} 4... O-O {[%clk 0:03:01.3]} 5. c4 {[%clk 0:03:05.9]} 5...
c5 {[%clk 0:03:02.2]} 6. d4 {[%clk 0:03:06.7]} 6... cxd4 {[%clk 0:03:04]} 7.
Nxd4 {[%clk 0:03:07.6]} 7... d5 {[%clk 0:03:04]} 8. cxd5 {[%clk 0:03:07.1]} 8...
Nxd5 {[%clk 0:03:05.9]} 9. Bc4 {[%clk 0:03:07.1]} 9... Nb6 {[%clk 0:02:41.7]}
10. Be2 {[%clk 0:02:37.3]} 10... Bd7 {[%clk 0:02:41.2]} 11. O-O {[%clk 0:02:31]}
11... Nc6 {[%clk 0:02:41.9]} 12. Nxc6 {[%clk 0:02:27]} 12... Bxc6 {[%clk
0:02:43.8]} 13. Bxg7 {[%clk 0:02:28.2]} 13... Kxg7 {[%clk 0:02:43.4]} 14. Nd2
{[%clk 0:02:22.1]} 14... Qd6 {[%clk 0:02:38.6]} 15. Nc4 {[%clk 0:02:19.8]} 15...
Nxc4 {[%clk 0:02:38.7]} 16. Bxc4 {[%clk 0:02:19.4]} 16... Rfd8 {[%clk
0:02:39.5]} 17. Qc2 {[%clk 0:02:01.7]} 17... Qe5 {[%clk 0:02:37]} 18. Rad1
{[%clk 0:01:53.1]} 18... Rac8 {[%clk 0:02:36.4]} 19. Rxd8 {[%clk 0:01:41.2]}
19... Rxd8 {[%clk 0:02:38.3]} 20. Rd1 {[%clk 0:01:42.1]} 20... Qe4 {[%clk
0:02:20.1]} 21. Qc3+ {[%clk 0:00:37.3]} 21... e5 {[%clk 0:02:19.6]} 22. f3
{[%clk 0:00:28.3]} 22... Rxd1+ {[%clk 0:02:18.3]} 23. Kf2 {[%clk 0:00:29.9]}
23... Qf5 {[%clk 0:02:14.4]} 0-1